Cogmind - Beta 15 *** ADVENTURER MODE // 2025.05.09 @ 21:46:29 Player: birb Result: Destroyed by Piercing Trap Performance ------------- Evolutions (0) 0 Regions Visited (3) 600 Robots Destroyed (21) 105 Value Destroyed (541) 541 Prototype IDs (1) 20 Alien Tech Used (0) 0 Bonus (0) 0 TOTAL SCORE: 1266 Bonus ------- None Cogmind --------- Core Integrity 0/250 Matter 300/300 Energy 263/265 System Corruption 0% Temperature Cool (1) Movement Treading (160) Location -10/Subcaves Parts ------- > --- POWER (1) -------- Improved Ion Engine > --- PROPULSION (2) --- Spiked Treads > --- UTILITY (2) ------ V3-11A's Pendant > --- WEAPON (2) ------- Barrage Gun Makeshift Spear > --- INVENTORY (5) ---- EM Shotgun EM Shotgun Medium Laser Beam Cannon Grenade Launcher Peak State ------------ > --- POWER ------------ Improved Ion Engine > --- PROPULSION ------- Light Treads Spiked Treads > --- UTILITY ---------- V3-11A's Pendant > --- WEAPON ----------- Barrage Gun Makeshift Spear > --- INVENTORY -------- EM Shotgun EM Shotgun Medium Laser Beam Cannon Grenade Launcher [Rating: 15] Favorites ----------- Power Improved Ion Engine Engine Improved Ion Engine Propulsion Compact Wheel Treads Light Treads Wheel Compact Wheel Utility Small Storage Unit Device V3-11A's Pendant Storage Small Storage Unit Protection Scrap Shield Weapon EM Shotgun Energy Gun EM Shotgun Ballistic Gun Light Assault Rifle Ballistic Cannon Light Cannon Launcher Grenade Launcher Piercing Weapon Makeshift Spear Build | -11 -10 -10 -10 ------- Run | Yrd Mat Min Sub Slots Evolved . | . . . . Power . | . . . . Propulsion . | . . . . Utility . | . . . . Weapon . | . . . . Parts Attached 19 | 6 3 5 5 Power 2 | 1 1 . . Engine 2 | 1 1 . . Core . | . . . . Reactor . | . . . . Propulsion 5 | 2 . 2 1 Treads 2 | . . 1 1 Leg . | . . . . Wheel 3 | 2 . 1 . Hover . | . . . . Flight . | . . . . Utility 3 | 1 . . 2 Device 1 | . . . 1 Storage 1 | 1 . . . Processor . | . . . . Hackware . | . . . . Protection 1 | . . . 1 Artifact . | . . . . Weapon 9 | 2 2 3 2 Energy Gun 4 | 1 2 1 . Energy Cannon . | . . . . Ballistic Gun 2 | 1 . . 1 Ballistic Cannon 1 | . . 1 . Launcher 1 | . . 1 . Special Weapon . | . . . . Impact Weapon . | . . . . Slashing Weapon . | . . . . Piercing Weapon 1 | . . . 1 Special Melee Weapon . | . . . . Unidentified Prototypes 1 | . . . 1 Parts Lost 5 | . 1 3 1 Power . | . . . . Propulsion 3 | . 1 1 1 Utility . | . . . . Weapon 2 | . . 2 . Highest Loss Streak 3 | . 1 3 1 To Critical Strikes . | . . . . Average Backups 4 | . 2 5 5 Power . | . . 1 . Propulsion . | . . . . Utility . | . . . . Weapon 3 | . 2 4 5 Tool/Special . | . . . . Unused Backups 2 | . . . 2 Power . | . . . . Propulsion . | . . . . Utility . | . . . . Weapon 2 | . . . 2 Tool/Special . | . . . . Average Slot Usage (%) 78 | . 79 71 84 Engine 14 | . 14 14 14 Treads 9 | . . 5 25 Wheel 12 | . 22 12 2 Device 1 | . . . 6 Storage 10 | . 14 14 2 Protection 1 | . . . 5 Energy Gun 15 | . 18 15 11 Ballistic Gun 6 | . 9 . 8 Launcher 3 | . . 6 5 Peak Build Rating 15 | 6 8 8 15 Average Rating 8 | 4 6 7 12 On Entrance 5 | . 6 8 8 Naked Turns . | . . . . Heaviest Build 31 | 13 18 18 31 Greatest Support 40 | 32 32 20 40 Greatest Overweight (x) 4 | 2 1 4 . Average Overweight (x) . | . . . . Largest Inventory Capacity 8 | 8 8 8 8 Average Capacity 7 | 7 8 8 5 Most Carried 7 | . 6 6 7 Average Carried 4 | . 2 5 5 Final Capacity 8 | 8 8 8 5 Final Carried 6 | . 6 6 5 Class Distribution -------------------- 91% | Mutant 8% | Derelict-Mutant Dominant Class ---------------- Mutant | -10/Materials Mutant | -10/Mines Mutant | -10/Subcaves Resources | -11 -10 -10 -10 ----------- Run | Yrd Mat Min Sub Matter Collected 553 | 244 108 80 121 Remotely . | . . . . Salvage Created 528 | . 335 88 105 Parts 27 | . 18 4 5 Haulers Intercepted 1 | . 1 . . Recyclers Shooed . | . . . . Parts Field Recycled . | . . . . Retrieved Matter . | . . . . Parts Self-Destructed 5 | . . . 5 Prevented . | . . . . Kills | -11 -10 -10 -10 ------- Run | Yrd Mat Min Sub Combat Hostiles Destroyed 20 | . 8 10 2 Guns 11 | . 7 2 2 Cannons 3 | . . 3 . AOE 5 | . . 5 . Classes Destroyed 8 | . 4 2 2 Hauler 1 | . 1 . . Watcher 2 | . 2 . . Swarmer 9 | . 3 6 . Grunt 5 | . 5 . . Sentry 1 | . . . 1 Demolisher 2 | . . 2 . Subdweller 1 | . . . 1 Assembled 2 | . . 2 . Best Kill Streak 6 | . 3 6 1 Combat Bots Only 6 | . 3 6 1 Max Kills in Single Turn 2 | . 1 2 1 Gunslinging . | . . . . Exploded 2 | . . 2 . Melee . | . . . . Uniques/NPCs Destroyed . | . . . . Combat | -11 -10 -10 -10 -------- Run | Yrd Mat Min Sub Hostile Shots Fired 94 | . 56 27 11 Missed 22 | . 16 4 2 Hits 72 | . 40 23 9 Melee 1 | . . 1 . Projectile 71 | . 40 22 9 AOE 8 | . . 8 . Critical Strikes 1 | . 1 . . Damage Taken 971 | . 373 362 236 Core 254 | . 150 74 30 Absorbed by Shields . | . . . . Ignored by Resistances 251 | . 112 101 38 Core Remaining (%) 100 | 100 . . . Volleys Fired 75 | . 45 20 10 Largest 2 | . 2 2 2 Hottest 90 | . 70 90 73 Shots Fired 134 | . 90 29 15 Gun 121 | . 90 16 15 Cannon 9 | . . 9 . Launcher 4 | . . 4 . Special . | . . . . Kinetic 59 | . 45 9 5 Thermal 45 | . 45 . . Explosive 4 | . . 4 . Electromagnetic 26 | . . 16 10 Robot Hit Streak 11 | . 8 6 11 Robot Miss Streak 2 | . 2 2 1 Penetration Max . | . . . . Secondary Targets 2 | . 2 . . Max Gunslinging Chain 1 | . 1 . . Shots Hit Robots 103 | . 62 23 18 Core Hits 45 | . 20 17 8 Critical Kills . | . . . . Critical Parts Destroyed . | . . . . Critical Strikes 3 | . 3 . . Burn 3 | . 3 . . Melee Attacks 5 | . . . 5 Impact . | . . . . Slashing . | . . . . Piercing 5 | . . . 5 Sneak Attacks . | . . . . Combat Hostiles . | . . . . Follow-up Attacks . | . . . . Damage Inflicted 1676 | . 644 544 488 Guns 988 | . 644 152 192 Cannons 125 | . . 125 . Explosions 267 | . . 267 . Melee 296 | . . . 296 Ramming . | . . . . Kinetic 419 | . 242 125 52 Thermal 453 | . 402 51 . Explosive 216 | . . 216 . Electromagnetic 292 | . . 152 140 Impact . | . . . . Slashing . | . . . . Piercing 296 | . . . 296 Highest Corruption . | . . . . Average Corruption . | . . . . Corruption Purged . | . . . . Corruption Blocked . | . . . . Overload Shots . | . . . . Overflow Damage 58 | . . 46 12 Projectiles . | . . . . Explosions 46 | . . 46 . Melee 12 | . . . 12 Knockbacks 2 | . . 2 . Impact . | . . . . Kinetic 2 | . . 2 . Secondary . | . . . . Self-Inflicted Damage . | . . . . Shots . | . . . . Rammed . | . . . . Targets Rammed . | . . . . Kicked . | . . . . Crushed . | . . . . Highest Temperature 276 | . 276 146 6 Average Temperature 73 | . 75 68 5 Received Heat Transfer 279 | . 228 . 51 Siege Activations . | . . . . Martial Activations . | . . . . Shielding Activations . | . . . . Robots Disrupted . | . . . . Combat Hostiles . | . . . . Robots Corrupted . | . . . . Combat Hostiles . | . . . . Parts Fried 1 | . . . 1 Impact Corruptions . | . . . . Robots Melted 1 | . 1 . . Combat Hostiles 1 | . 1 . . Parts Melted 5 | . 5 . . Heat Transferred 1506 | . 1406 100 . Parts Sabotaged . | . . . . Parts Stolen . | . . . . Parts Stripped . | . . . . Power Chain Reactions . | . . . . Alert | -11 -10 -10 -10 ------- Run | Yrd Mat Min Sub Maximum Alert Level . | . . . . Low Security (%) 100 | 100 100 100 . Level 1 . | . . . . Level 2 . | . . . . Level 3 . | . . . . Level 4 . | . . . . Level 5 . | . . . . High Security . | . . . . Max Security . | . . . . Peak Influence 172 | . 104 172 . Initial . | . . . . Average 34 | . 32 42 . Influence Increases 480 | . 218 242 20 Destroy 0b10 Robot/C 340 | . 160 160 20 Destroy 0b10 Robot/NC 15 | . 15 . . Destroy Leader 66 | . 36 30 . Successful Hack 7 | . 7 . . Disable Machine 27 | . . 27 . Destroy Structure 25 | . . 25 . Influence Decreases 480 | . 217 111 152 Entered New Map 79 | . . 1 78 Time Decay 371 | . 207 90 74 Lost Part 30 | . 10 20 . Squads Dispatched 2 | . 2 . . Investigation 2 | . 2 . . Extermination . | . . . . Reinforcement . | . . . . Assault . | . . . . Garrison . | . . . . Intercept . | . . . . Searches Triggered . | . . . . Construction Impeded . | . . . . Haulers Reinforced . | . . . . Active Scanning Responses . | . . . . Cargo Convoy Interrupts . | . . . . Stealth | -11 -10 -10 -10 --------- Run | Yrd Mat Min Sub Distress Signals 1 | . . 1 . Communications Jammed . | . . . . Distress Signals . | . . . . Times Spotted 32 | . 11 19 2 Peak Tracking Total 10 | . 3 10 1 Tactical Retreats 3 | . . 3 . Traps | -11 -10 -10 -10 ------- Run | Yrd Mat Min Sub Traps Triggered 6 | . 3 . 3 Indirectly . | . . . . Trap Hack Attempts . | . . . . Triggered . | . . . . Disarmed . | . . . . Reprogrammed . | . . . . Reused . | . . . . Traps Extracted . | . . . . Installed . | . . . . Triggered . | . . . . Machines | -11 -10 -10 -10 ---------- Run | Yrd Mat Min Sub Machines Disabled 3 | . . 3 . Max in Single Turn 1 | . . 1 . Machines Repaired . | . . . . Machines Dismantled . | . . . . Machines Sabotaged . | . . . . Overloaded Fab Kills . | . . . . Hacking | -11 -10 -10 -10 --------- Run | Yrd Mat Min Sub Machines Accessed 4 | . 4 . . Terminals 2 | . 2 . . Fabricators . | . . . . Repair Stations . | . . . . Recycling Units 2 | . 2 . . Scanalyzers . | . . . . Garrison Access . | . . . . Total Hacks 6 | . 6 . . Successful 4 | . 4 . . Failed 2 | . 2 . . Catastrophic . | . . . . Database Lockouts . | . . . . Manual . | . . . . Terminals 4 | . 4 . . Fabricators . | . . . . Repair Stations . | . . . . Recycling Units 2 | . 2 . . Scanalyzers . | . . . . Garrison Access . | . . . . Terminal Hacks 2 | . 2 . . Level Access Points 1 | . 1 . . Zone Layout 1 | . 1 . . Fabricator Hacks . | . . . . Repair Station Hacks . | . . . . Recycling Unit Hacks 2 | . 2 . . Retrieve Components 2 | . 2 . . Scanalyzer . | . . . . Garrison Access Hacks . | . . . . Unauthorized Hacks . | . . . . Terminals . | . . . . Fabricators . | . . . . Repair Stations . | . . . . Recycling Units . | . . . . Scanalyzers . | . . . . Garrison Access . | . . . . Data Cores Recovered . | . . . . Used . | . . . . Hacking Detections 1 | . 1 . . Full Trace Events . | . . . . Feedback Events . | . . . . Feedback Blocked . | . . . . Robot Schematics Acquired . | . . . . Robots Built . | . . . . Authchips . | . . . . Time . | . . . . Total Robot Build Rating . | . . . . Part Schematics Acquired . | . . . . Parts Built . | . . . . Authchips . | . . . . Time . | . . . . Total Part Build Rating . | . . . . Parts Repaired . | . . . . Time . | . . . . Parts Recycled . | . . . . Recycled Matter . | . . . . Retrieved Matter . | . . . . Retrieved Components 4 | . 4 . . Parts Scanalyzed . | . . . . Part Schematics Acquired . | . . . . Parts Damaged . | . . . . Bothacking | -11 -10 -10 -10 ------------ Run | Yrd Mat Min Sub Used RIF Installer . | . . . . Robots Hacked . | . . . . Non-combat . | . . . . Combat . | . . . . Robot Hacks Applied . | . . . . Relay Couplers Released . | . . . . Fabnet Peak Effective % . | . . . . Robots Rewired . | . . . . Allies Hacked . | . . . . Hacks Repelled . | . . . . Allies | -11 -10 -10 -10 -------- Run | Yrd Mat Min Sub Total Allies 1 | . . . 1 Largest Group 1 | . . . 1 Highest-Rated Group 19 | . . . 19 Highest-Rated Ally 19 | . . . 19 Total Orders . | . . . . Ally Attacks . | . . . . Total Damage . | . . . . Kills . | . . . . Allies Corrupted . | . . . . Allies Melted . | . . . . Intel | -11 -10 -10 -10 ------- Run | Yrd Mat Min Sub Active Infowar (turns) . | . . . . Robot Analysis Total . | . . . . Derelict Logs Recovered 2 | . . 1 1 Drone Launches . | . . . . Drone Recoveries . | . . . . Exploration | -11 -10 -10 -10 ------------- Run | Yrd Mat Min Sub Turns Passed 1559 | 47 589 436 487 Spaces Moved 977 | 39 415 265 258 Core 17 | 4 . 13 . Treads 363 | . . 105 258 Legs . | . . . . Wheels 597 | 35 415 147 . Hover . | . . . . Flight . | . . . . Fastest Speed 50 | 50 100 100 160 Average Speed 128 | 100 105 137 160 Slowest Speed 250 | 150 115 250 160 Overloaded Moves . | . . . . Propulsion Burnouts . | . . . . Robots Hopped . | . . . . Potential Cave-ins . | . . . . Cave-ins Triggered . | . . . . Exploration Rate (%) 33 | 3 56 54 20 Regions Visited 3 Branch Regions 2 Pre-discovered Areas 2 | . . . 2 Known Exits Taken . | . . . . Unknown Exits Taken 3 | 1 1 1 . Scrap Searched 9 | . . 1 8 Spaces Dug . | . . . . Terrain Destroyed 31 | . . 31 . Melee . | . . . . Projectile . | . . . . AOE 31 | . . 31 . Terrain Rammed . | . . . . Walls Destroyed . | . . . . Machines Disabled . | . . . . Actions | -11 -10 -10 -10 --------- Run | Yrd Mat Min Sub Total 1142 | 44 482 306 310 Wait 51 | . 13 15 23 Move 974 | 38 414 264 258 Hop . | . . . . Pick Up 9 | . 5 2 2 Fast Attach 12 | 6 2 2 2 Attach 3 | . . 2 1 Detach . | . . . . Swap 7 | . 3 1 3 Drop 4 | . . . 4 Fire 75 | . 45 20 10 Melee 5 | . . . 5 Ram . | . . . . Kick . | . . . . Crush . | . . . . Escape Stasis . | . . . . Rewire . | . . . . Trap . | . . . . Miscellaneous 2 | . . . 2 Route ------- -11/Scrapyard -10/Materials (discovered 4 exits: Mat x3 / [*Min]) -10/Mines (discovered 2 exits: Mat / [*Sub]) -10/Subcaves (discovered 1 exit: [*Mat]) History --------- Turn | Location | Event 15 | -11/Scrapyard | Discovered new exit (range 15) 48 | -11/Scrapyard | Entered Materials 115 | -10/Materials | Discovered new exit (range 13) 315 | -10/Materials | Build established: Mutant 357 | -10/Materials | Core integrity fell below 50% 429 | -10/Materials | Identified exit to Materials 637 | -10/Materials | Entered Mines 711 | -10/Mines | Assembled infested the area 758 | -10/Mines | Core integrity fell below 20% 803 | -10/Mines | Lost 3 parts (1n2w) 857 | -10/Mines | YI-UF0 nonchalantly dropped a Grenade Launcher on the ground 1063 | -10/Mines | Discovered new exit (range 6) 1073 | -10/Mines | Entered Subcaves 1074 | -10/Subcaves | Approached by a straggling Scientist 1185 | -10/Subcaves | Disturbed a concealed Subdweller 1288 | -10/Subcaves | A swath of the cavern ceiling suddenly collapsed 1335 | -10/Subcaves | Visited triangular shrine 1346 | -10/Subcaves | Found Prototype Device 1346 | -10/Subcaves | Identified V3-11A's Pendant 1351 | -10/Subcaves | Befriended Subdweller 1415 | -10/Subcaves | Learned location of Zion (-7) 1415 | -10/Subcaves | Met a Zionite searching for "candidates" 1503 | -10/Subcaves | Discovered new exit (range 8) 1560 | -10/Subcaves | Destroyed by Piercing Trap Last Messages --------------- T1-HSF(c): "I think it's somewhere west of here" 01485_ Sneak attack on YD-7M1(R). 01485_ Destroyed Sub. Power Source. 01487_ Sneak attack on YD-7M1(R). 01493_ YD-7M1(R) destroyed. 01495_ Acquired 30 matter. 01503_ EXIT=FOUND T1-HSF(c): "I think it's somewhere west of here" 01552_ Triggered Piercing Trap. 01552_ Spikes shoot up from the floor. 01552_ Critical hit (Impale). 01556_ Triggered Piercing Trap. 01556_ Spikes shoot up from the floor. 01556_ Critical hit (Impale). 01556_ Lgt. Treads destroyed. 01557_ T1-HSF(c) triggered Shrapnel Trap. 01557_ An expanding cloud of shrapnel blasts out in all directions. 01560_ Triggered Piercing Trap. 01560_ Spikes shoot up from the floor. Map ----- +----------------------------------------------------+ | ???????????????????????????????????## ### # | | ?????????????????????????????????### ##?## # | | ????????????????????????????????## ##???# ## | | ????????????????????????????????# ######## ##? | | ????????????????????????????????## ## #? | | ?????????????????????????????????# #### #### ### | | ?????????????????????????????????###????????## | | ?????????????????????????????????????????????# | | ??????????????????????????????????????#??????# | | ??????????????????????????????????????# #???## ## | | ?????????????????????????????????????## #### # | | ????????????????????????????????????## # # ## | | ????????????????????????????????????# # | | ????????????????????????????????????## ### ## | | ?????????????????????????????????????# ##?# ## | | ????????????????????????????????????## ### | | ????????????????????????????????????# # | | ???????????????????????????????????### | | ??????????????????????????????????## [! ### | | ??????????????????????????????????# &%" #### | | ??????????????????????????????????## & " #??## | | ?????????????????????????????????### &#???? | | ?????????????????????????????????# " #???? | | ????????????????????????#####????# & #???? | | ??????????? # ### ###%# #??### # " ##???? | | ?????????? @ #### ######????? | | ?????????? O c;;## # ##???##???? | | ?????????? [ # ## ## R ## ### ##??? | | ??????????????????????# # ## ##?? | | ???????????????????# ### ##? | | ???????????????????# ; # # < #? | | ??????????????????# ## ; ;#### # | | ??????????????????# #?#### ;;#??## #### | | ??????????????????# ????# ###???# #??? ## | | ??????????????????# ?????## ???? ####??? ##?? | | ??????????????????# ?????? #??? #???????? ##??? | | ?????????????????? ??????## ?? ?????????##???? | | ????????????????? ???????? #? ???????????????? | | ?????????????????????????? ???????????????? | | ?????????????????????????## ????????????????? | | ?????????????????????????? ### ?????????????????? | | ?????????????????????????? #??# ?????????????????? | | ?????????????????????????? ???#??????????????????? | | ?????????????????????????????????????????????????? | | ?????????????????????????????????????????????????? | | ?????????????????????????????????????????????????? | | ?????????????????????????????????????????????????? | | ?????????????????????????????????????????????????? | | ?????????????????????????????????????????????????? | | ?????????????????????????????????????????????????? | +----------------------------------------------------+ Best States ------------- Heat Dissipation 25 Energy Generation 12 Energy Capacity 265 Matter Stores 300 Matter Capacity 300 Sight Range 16 Terrain Scan Density 10 Armor Coverage 800 Resistance: KI 20 Resistance: TH 20 Resistance: EX 20 Resistance: EM 20 Resistance: I 20 Resistance: S 20 Resistance: P 20 Evasion (%) 40 Recoil Reduction 2 Offensive Hacking 10 Item Schematics ----------------- None Robot Schematics ------------------ None Fabricated ------------ Nothing Repaired ---------- Nothing Alien Tech Used ----------------- None Achievements -------------- None Challenges ------------ None Game ------ Seed AngularVampiricRailcannon Manual? 0 Play Time 00:12:04 Cumulative 55.9 hours Start 2025.05.09 @ 21:34:25 End 2025.05.09 @ 21:46:29 Sessions 1 Manual Loads 0 Difficulty Adventurer Special Mode None Game No. 31 Rogue 0 Adventurer 31 Explorer 0 Win Type - Total 1 Types 1/0/0/0/0/0/0/0/0/0 Lore% 28 Gallery% 42 Achievement% 41 Wizard Run 0 Options --------- Layout 1 ASCII 0 Keyboard 0 Movement Mouse Keybinds 0 Fullscreen 1 Font 24/Smallcaps Map View 50x35 Zoom Use 0% Tactical HUD 1 Map Filters NONE Filters NONE Steam 1 RUN: b87f8f26-9c50-467f-aa29-4fb33d379dec